bitfinex-derivatives/quotes_BTCF0:USTF0_20250327
["timestamp","ask_amount","ask_price","bid_price","bid_amount"]
[1743074835007,0.1803062,87017.0,87013.0,0.1149109]
[1743074835212,0.1803062,87017.0,87014.0,0.0314]
[1743074835606,0.1803062,87017.0,87015.0,0.1149076]
[1743074835804,0.2914662,87017.0,87014.0,0.0314]
[1743074836219,0.1803062,87017.0,87014.0,0.0314]
[1743074836509,0.2914662,87017.0,87014.0,0.0314]
[1743074836908,0.2914662,87017.0,87009.0,0.0574578]
[1743074837111,0.2914262,87017.0,87011.0,0.0311]
[1743074837615,0.2914262,87017.0,87010.0,0.0314]
[1743074837808,0.1149142,87011.0,87010.0,0.0314]
[1743074838005,0.1165142,87011.0,87010.0,0.0314]
[1743074838613,0.1165142,87011.0,87002.0,8e-05]
[1743074838614,0.1149247,87003.0,87002.0,8e-05]
[1743074838817,0.114926,87002.0,87001.0,0.1149274]
[1743074839008,0.1149274,87001.0,86998.0,0.00016]
[1743074839209,0.1165274,87001.0,86996.0,0.0308]
[1743074839509,0.1804274,87001.0,86997.0,0.1149316]
[1743074840122,0.1804274,87001.0,86999.0,0.114929]
[1743074840312,0.2915474,87001.0,86999.0,0.114929]
[1743074840510,0.1804274,87001.0,87000.0,0.13575977]
[1743074840819,0.0334,87001.0,87000.0,0.28388847]
[1743074841409,0.00017232,87011.0,87005.0,0.0574607]
[1743074841704,0.13566085,87021.0,87016.0,0.1149076]
[1743074841908,0.10286565,87017.0,87016.0,0.5877076]
[1743074842116,0.10174564,87017.0,87016.0,0.5877076]
[1743074842306,0.10286565,87017.0,87016.0,2.0877076]
[1743074842504,0.10174564,87017.0,87016.0,2.1482076]
[1743074842709,0.21665184,87017.0,87016.0,1.6760076]
[1743074842906,0.21665184,87017.0,87016.0,0.1760076]
[1743074843119,0.21785185,87017.0,87016.0,0.1760076]
[1743074843526,0.24915185,87017.0,87016.0,0.1760076]
[1743074843823,0.24915185,87017.0,87016.0,0.1458076]
[1743074844119,0.24915185,87017.0,87016.0,0.0006]
[1743074844415,0.1149181,87009.0,87008.0,0.1149171]
[1743074844621,0.11603681,87009.0,87008.0,0.0006]
[1743074844817,0.00112001,87009.0,87008.0,0.1476181]
[1743074845009,0.03212001,87009.0,87008.0,0.1786181]
[1743074845325,0.14703681,87009.0,87008.0,0.1786181]
[1743074845821,0.14703681,87009.0,87008.0,0.1806181]
[1743074846018,0.00112001,87009.0,87008.0,0.1806181]
[1743074846223,0.114914,87012.0,87011.0,0.1723679]
[1743074846425,0.11603401,87012.0,87011.0,0.2360679]
[1743074848422,0.11603401,87012.0,87011.0,0.2370679]
[1743074849210,0.00112001,87012.0,87011.0,0.2380679]
[1743074849413,0.1149116,87013.0,87012.0,0.1149128]
[1743074849620,0.11603161,87013.0,87012.0,0.1155128]
[1743074849823,0.11603161,87013.0,87012.0,0.2092128]
[1743074850518,0.11603161,87013.0,87012.0,0.2102128]
[1743074851028,0.00112001,87013.0,87012.0,0.2112128]
[1743074851230,0.1149044,87019.0,87018.0,0.1149036]
[1743074851529,0.11602441,87019.0,87018.0,0.1155036]
[1743074851720,0.17972441,87019.0,87018.0,0.1155036]
[1743074853716,0.17972441,87019.0,87018.0,0.0006]
[1743074853918,0.17972441,87019.0,87018.0,0.1155049]
[1743074854122,0.17972441,87019.0,87018.0,0.0006]
[1743074854319,0.17972441,87019.0,87018.0,0.1155049]
[1743074854717,0.21292441,87019.0,87018.0,0.1155049]
[1743074856125,0.21292441,87019.0,87018.0,0.0006]
[1743074858831,0.21292441,87019.0,87018.0,0.1155049]
[1743074859328,0.21292441,87019.0,87018.0,0.0006]
[1743074860629,0.21292441,87019.0,87018.0,0.1155049]
[1743074861719,0.21292441,87019.0,87018.0,0.0006]
[1743074862730,0.21292441,87019.0,87018.0,0.0314]
[1743074863519,0.21292441,87019.0,87018.0,0.1463049]
[1743074864539,0.21292441,87019.0,87018.0,0.0314]
[1743074864921,0.21292441,87019.0,87018.0,0.1463049]
[1743074865127,0.21292441,87019.0,87018.0,0.1796049]
[1743074865926,0.21292441,87019.0,87018.0,0.0647]
[1743074866125,0.21292441,87019.0,87018.0,0.1488049]
[1743074866837,0.21292441,87019.0,87018.0,0.0339]
[1743074867339,0.21292441,87019.0,87018.0,0.0654]
[1743074867541,0.21292441,87019.0,87018.0,0.1803049]
[1743074868240,0.21292441,87019.0,87018.0,0.0654]
[1743074868439,0.21292441,87019.0,87018.0,0.0648]
[1743074868641,0.21292441,87019.0,87018.0,0.06544]
[1743074869543,0.21292441,87019.0,87018.0,0.03394]
[1743074869841,0.21292441,87019.0,87018.0,0.1488449]
[1743074870540,0.03412001,87019.0,87018.0,0.1488449]
[1743074870941,0.03412001,87019.0,87018.0,0.1815449]
[1743074872039,0.18002361,87019.0,87018.0,0.1815449]
[1743074872240,0.40560467,87019.0,87018.0,0.1815449]
[1743074875347,0.18002361,87019.0,87018.0,0.1815449]
[1743074876047,0.21292361,87019.0,87018.0,0.1815449]
[1743074876740,0.21292361,87019.0,87018.0,0.1488449]
[1743074877143,0.22428798,87019.0,87018.0,0.1800449]
[1743074879942,0.22428798,87019.0,87018.0,0.1488449]
[1743074881250,0.22428798,87019.0,87018.0,0.1800449]
[1743074882746,0.1149155,87010.0,87009.0,5.16e-05]
[1743074883053,0.1162355,87010.0,87009.0,5.16e-05]
[1743074883249,0.1162355,87010.0,87009.0,0.0006916]
[1743074883440,0.1491355,87010.0,87009.0,0.0006916]
[1743074883842,0.1812355,87010.0,87009.0,0.0006916]
[1743074884050,0.2118355,87010.0,87009.0,0.0026916]
[1743074884350,0.2118355,87010.0,87009.0,0.1176084]
[1743074884746,0.2118355,87010.0,87009.0,0.1812084]
[1743074885347,0.2118355,87010.0,87009.0,0.0365916]
[1743074885536,0.2118355,87010.0,87009.0,0.0040516]
[1743074885741,0.0574603,87007.0,87000.0,0.10545977]
[1743074885940,0.4757274,87001.0,87000.0,0.10545977]
[1743074886152,0.5878474,87001.0,87000.0,0.10545977]
[1743074886351,0.5878474,87001.0,87000.0,0.10613977]
[1743074886352,0.6831474,87001.0,87000.0,0.10613977]
[1743074886538,0.6831474,87001.0,87000.0,0.13723977]
[1743074886736,0.5723874,87001.0,87000.0,0.25148847]
[1743074886953,0.5723874,87001.0,87000.0,0.25548847]
[1743074887145,0.5083874,87001.0,87000.0,0.28688847]
[1743074887545,0.5395874,87001.0,87000.0,0.28688847]
[1743074887747,0.5395874,87001.0,87000.0,0.28288847]
[1743074887951,0.5083874,87001.0,87000.0,0.28288847]
[1743074888553,0.39346,87001.0,87000.0,0.28288847]
[1743074889055,0.5083874,87001.0,87000.0,0.28288847]
[1743074889657,0.39346,87001.0,87000.0,0.28288847]
[1743074889853,0.5083874,87001.0,87000.0,0.28288847]
[1743074893655,0.5083874,87001.0,87000.0,1.78288847]
[1743074894449,0.5392874,87001.0,87000.0,1.78288847]
[1743074894656,0.5392874,87001.0,87000.0,1.66795977]
[1743074894858,0.5392874,87001.0,87000.0,0.25148847]
[1743074895365,0.5392874,87001.0,87000.0,0.13655977]
[1743074895657,0.5392874,87001.0,87000.0,0.25148847]
[1743074897349,0.67531079,87001.0,87000.0,0.25148847]
[1743074897548,0.67531079,87001.0,87000.0,0.13655977]
[1743074897753,0.67531079,87001.0,87000.0,0.22098847]
[1743074897955,0.67531079,87001.0,87000.0,0.25158847]
[1743074899060,0.0574736,86987.0,86984.0,0.1149487]
[1743074899256,0.1149485,86985.0,86984.0,0.1149487]
[1743074899747,0.1457485,86985.0,86984.0,0.1149487]
[1743074900352,0.1786485,86985.0,86984.0,0.1189487]
[1743074901151,0.1786485,86985.0,86984.0,0.1229487]
[1743074901453,0.1457485,86985.0,86984.0,0.1229487]
[1743074902661,0.14730851,86985.0,86984.0,0.1229487]
[1743074905060,0.17850851,86985.0,86984.0,0.1229487]
[1743074906050,0.53930851,86985.0,86984.0,0.1229487]
[1743074906251,0.53930851,86985.0,86984.0,0.008]
[1743074906552,0.53930851,86985.0,86984.0,0.1556498]
[1743074906855,0.53930851,86985.0,86984.0,0.0407]
[1743074907053,0.53930851,86985.0,86984.0,0.1556498]
[1743074907760,0.53930851,86985.0,86983.0,0.0574755]
[1743074907761,0.1149697,86969.0,86967.0,8e-05]
[1743074907953,0.4772497,86969.0,86967.0,8e-05]
[1743074908152,0.5387497,86969.0,86968.0,0.11543094]
[1743074909360,0.55002046,86969.0,86968.0,0.00045994]
[1743074909659,0.55002046,86969.0,86968.0,0.00245994]
[1743074909855,0.55002046,86969.0,86968.0,0.00545994]
[1743074910055,0.55002046,86969.0,86968.0,0.12043094]
[1743074910759,0.55002046,86969.0,86968.0,0.00545994]
[1743074910962,0.91082046,86969.0,86968.0,0.00545994]
[1743074912651,1.02194046,86969.0,86968.0,0.00545994]
[1743074919564,1.02194046,86969.0,86968.0,0.00045994]
[1743074919864,1.02794046,86969.0,86968.0,0.00045994]
[1743074920952,0.91682046,86969.0,86968.0,0.00045994]
[1743074921453,0.91682046,86969.0,86968.0,0.03285994]
[1743074921662,0.91682046,86969.0,86968.0,0.06595994]
[1743074921966,0.91682046,86969.0,86968.0,0.00045994]
[1743074922153,1.05253779,86969.0,86968.0,0.00045994]
[1743074925668,1.05253779,86969.0,86937.0,0.0575044]
[1743074925669,1.08756809,86969.0,86937.0,0.0575044]
[1743074925867,0.3608,86945.0,86944.0,0.1150027]
[1743074926068,0.36228,86945.0,86944.0,0.1150027]
[1743074926271,0.4772814,86945.0,86944.0,0.1150027]
[1743074927165,0.52209373,86945.0,86944.0,0.1777027]
[1743074928266,0.00148,86945.0,86944.0,0.5385027]
[1743074928586,0.1149989,86951.0,86950.0,0.1724868]
[1743074928868,0.47735891,86951.0,86950.0,1.6724868]
[1743074929069,0.48882808,86951.0,86950.0,1.6724868]
[1743074929471,0.47735891,86951.0,86950.0,1.6724868]
[1743074929668,0.47735891,86951.0,86950.0,1.6734868]
[1743074930073,0.11655891,86951.0,86950.0,1.6734868]
[1743074930271,0.11655891,86951.0,86950.0,1.6159927]
[1743074930464,0.14975891,86951.0,86950.0,1.558496]
[1743074930964,0.18075891,86951.0,86950.0,1.558496]
[1743074931165,0.18075891,86951.0,86950.0,1.623696]
[1743074931368,0.28250876,86951.0,86950.0,1.623696]
[1743074932370,0.28250876,86951.0,86950.0,1.5662]
[1743074932580,0.28250876,86951.0,86950.0,0.1811948]
[1743074936085,0.18075891,86951.0,86950.0,0.1811948]
[1743074936381,0.18075891,86951.0,86950.0,0.0662]
[1743074937268,0.18993436,86951.0,86950.0,0.0662]
[1743074937679,0.18993436,86951.0,86950.0,0.1811948]
[1743074938376,0.20481078,86951.0,86950.0,0.0662]
[1743074938878,0.20481078,86951.0,86950.0,0.1811948]
[1743074939066,0.20481078,86951.0,86950.0,0.0662]
[1743074939671,0.20492383,86951.0,86950.0,0.0662]
[1743074939879,0.43094092,86951.0,86950.0,0.0662]
[1743074940076,0.43094092,86951.0,86950.0,0.1811948]
[1743074940677,0.31594202,86951.0,86950.0,0.1811948]
[1743074940879,0.28494202,86951.0,86950.0,0.1811948]
[1743074941080,0.25019849,86951.0,86950.0,0.1811948]
[1743074941287,0.35031113,86951.0,86950.0,0.1811948]
[1743074941474,0.23531763,86951.0,86950.0,0.1811948]
[1743074942274,0.22601709,86951.0,86950.0,0.1811948]
[1743074942679,0.34101059,86951.0,86950.0,0.1811948]
[1743074943382,0.22601709,86951.0,86950.0,0.1811948]
[1743074943785,0.0574949,86954.0,86953.0,0.1149908]
[1743074944086,0.17010612,86958.0,86957.0,0.1149855]
[1743074944287,0.17158612,86958.0,86957.0,0.2384655]
[1743074944487,0.17158612,86958.0,86957.0,0.3003655]
[1743074944980,0.28657032,86958.0,86957.0,0.1768855]
[1743074945286,0.1149935,86951.0,86945.0,8e-05]
[1743074945486,0.50223746,86951.0,86946.0,0.0317]
[1743074945684,0.50223746,86951.0,86943.0,0.0311]
[1743074945986,0.1149987,86947.0,86946.0,8e-05]
[1743074946180,0.14148267,86947.0,86946.0,0.1778001]
[1743074946376,0.19272402,86947.0,86946.0,0.0628]
[1743074946993,0.20923357,86947.0,86946.0,0.1778001]
[1743074947197,0.20923357,86947.0,86946.0,0.0628]
[1743074947788,0.20923357,86947.0,86946.0,0.1778001]
[1743074947990,0.20923357,86947.0,86946.0,0.15191628]
[1743074948390,0.20204362,86947.0,86946.0,0.15291628]
[1743074949083,0.2029158,86947.0,86946.0,0.15291628]
[1743074949996,0.0438657,86947.0,86946.0,0.15291628]
[1743074950286,0.3608,86968.0,86954.0,0.1149895]
[1743074950287,0.01771759,86955.0,86954.0,0.1149895]
[1743074950488,0.23648735,86956.0,86955.0,0.1792882]
[1743074950690,0.20716735,86956.0,86955.0,0.19056638]
[1743074950895,0.20560734,86956.0,86955.0,0.19056638]
[1743074951110,0.32059414,86956.0,86955.0,0.1792882]
[1743074951390,0.32059414,86956.0,86955.0,1.7112882]
[1743074951391,0.00148,86956.0,86955.0,1.7112882]
[1743074951900,0.0319,86961.0,86960.0,0.1149815]
[1743074952082,0.00017243,86962.0,86961.0,0.1149802]
[1743074952279,0.00017243,86962.0,86961.0,0.1775802]
[1743074952478,0.0319,86966.0,86965.0,0.1149749]
[1743074952699,0.1153591,86977.0,86976.0,0.1149604]
[1743074952994,0.00188,86977.0,86976.0,0.1800604]
[1743074953192,0.00188,86977.0,86976.0,1.7106604]
[1743074953401,0.1153591,86977.0,86976.0,1.7106604]
[1743074953579,0.0004,86977.0,86976.0,1.7106604]
[1743074953780,0.1153591,86977.0,86976.0,1.7106604]
[1743074954192,0.0004,86977.0,86976.0,1.7106604]
[1743074955490,0.0054,86977.0,86976.0,1.7106604]
[1743074955895,0.0104,86977.0,86976.0,0.2106604]
[1743074956296,0.01192,86977.0,86976.0,0.2106604]
[1743074957294,0.1268791,86977.0,86976.0,0.2106604]
[1743074957501,0.1268791,86977.0,86976.0,0.1455604]
[1743074957896,0.1268791,86977.0,86976.0,0.1149604]
[1743074958194,0.01192,86977.0,86976.0,0.1149604]
[1743074958399,0.1268791,86977.0,86976.0,0.1149604]
[1743074958693,0.1578791,86977.0,86976.0,0.1149604]
[1743074958894,0.04292,86977.0,86976.0,0.1149604]
[1743074959096,0.1578791,86977.0,86976.0,0.1149604]
[1743074960487,0.1578791,86977.0,86972.0,8e-05]
[1743074960488,0.1149644,86973.0,86972.0,8e-05]
[1743074960691,0.1149697,86969.0,86968.0,0.11514343]
[1743074960887,0.1164497,86969.0,86968.0,0.11514343]
[1743074961397,0.16422341,86969.0,86968.0,0.11514343]
[1743074962302,0.17645727,86969.0,86968.0,0.11514343]
[1743074962506,0.18238033,86969.0,86968.0,0.11514343]
[1743074962808,0.18238065,86969.0,86968.0,0.11514343]
[1743074963303,0.07041095,86969.0,86968.0,0.11514343]
[1743074963603,0.17057138,86969.0,86968.0,0.11514343]
[1743074963804,0.17057138,86969.0,86968.0,0.14804343]
[1743074965307,0.0331,86970.0,86969.0,0.1149697]
[1743074965502,0.0331,86970.0,86969.0,0.1478697]
[1743074965701,0.03414001,86970.0,86969.0,0.1798697]
[1743074965899,0.03414001,86970.0,86969.0,1.6798697]
[1743074966114,0.0331,86970.0,86969.0,1.6798697]
[1743074966307,0.20406495,86983.0,86976.0,0.1149604]
[1743074966509,0.03458,86977.0,86976.0,0.1160004]
[1743074966701,0.06648,86977.0,86976.0,0.2104004]
[1743074966902,0.06648,86977.0,86976.0,1.7104004]
[1743074967996,0.00548,86977.0,86976.0,1.8604004]
[1743074968306,0.05764693,86985.0,86976.0,1.8604004]
[1743074968307,0.1724001,86997.0,86992.0,0.1149393]
[1743074968507,0.0319,86997.0,86992.0,0.5404393]
[1743074968715,0.0319,86997.0,86992.0,0.5705393]
[1743074969007,0.0319,86997.0,86992.0,2.0705393]
[1743074969207,0.0319,86997.0,86992.0,2.4313393]
[1743074969516,0.0024,86993.0,86992.0,2.4313393]
[1743074969809,0.01715787,86993.0,86992.0,2.4313393]
[1743074970201,1e-08,86993.0,86992.0,2.4313393]
[1743074970409,0.0319,86997.0,86996.0,0.114934]
[1743074970603,0.0319,86997.0,86996.0,0.115534]
[1743074970912,0.0319,86997.0,86996.0,0.178534]
[1743074971616,0.0379,86997.0,86996.0,0.178534]
[1743074971909,0.1397341,86997.0,86996.0,0.178534]
[1743074973616,0.1405341,86997.0,86996.0,0.178534]
[1743074973997,0.1405341,86997.0,86996.0,0.145634]
[1743074974515,0.1397341,86997.0,86996.0,0.145634]
[1743074975007,0.2546667,86997.0,86996.0,0.115534]
[1743074975312,0.26536356,86997.0,86996.0,0.115534]
[1743074976509,0.16352946,86997.0,86996.0,0.115534]
[1743074976908,0.04859686,86997.0,86996.0,0.115534]
[1743074977108,0.16352946,86997.0,86996.0,0.115534]
[1743074977308,0.20409786,86997.0,86996.0,0.115534]
[1743074977504,0.08916526,86997.0,86996.0,0.115534]
[1743074977710,0.08844526,86997.0,86996.0,0.115534]
[1743074978111,0.09459351,86997.0,86996.0,0.115534]
[1743074978407,0.09449166,86997.0,86996.0,0.115534]
[1743074978916,0.21018426,86997.0,86996.0,0.115534]
[1743074979418,0.09525166,86997.0,86996.0,0.115534]
[1743074979600,0.21018426,86997.0,86996.0,0.115534]
[1743074980419,0.2253978,86997.0,86996.0,0.115534]
[1743074980607,0.2565978,86997.0,86996.0,0.115534]
[1743074981513,0.2565978,86997.0,86996.0,0.148634]
[1743074982114,0.24662094,86997.0,86996.0,0.148634]
[1743074984312,0.24662094,86997.0,86996.0,0.179634]
[1743074984515,0.13168834,86997.0,86996.0,0.179634]
[1743074984710,0.1994474,86997.0,86996.0,0.179634]
[1743074984911,0.2001674,86997.0,86996.0,0.179634]
[1743074986421,0.1996447,86997.0,86996.0,0.179634]
[1743074987411,0.1996447,86997.0,86996.0,0.148634]
[1743074988516,0.1996447,86997.0,86996.0,0.115534]
[1743074989615,0.21480046,86997.0,86996.0,0.115534]
[1743074990326,0.21513068,86997.0,86996.0,0.115534]
[1743074990716,0.22480905,86997.0,86996.0,0.115534]
[1743074990917,0.22480905,86997.0,86996.0,1.615534]
[1743074991226,0.22408905,86997.0,86996.0,1.615534]
[1743074992426,0.22408905,86997.0,86996.0,0.115534]
[1743074992615,0.22480905,86997.0,86996.0,0.115534]
[1743074993015,0.22480905,86997.0,86996.0,1.615534]
[1743074993223,0.22408905,86997.0,86996.0,1.615534]
[1743074993829,0.21441068,86997.0,86996.0,1.615534]
[1743074994527,0.21441068,86997.0,86996.0,1.678934]
[1743074995229,0.21441068,86997.0,86996.0,1.647134]
[1743074995528,0.22416186,86997.0,86996.0,0.115534]
[1743074995724,0.22488186,86997.0,86996.0,0.115534]
[1743074996822,0.22521801,86997.0,86996.0,0.115534]
[1743074998923,0.28109892,86997.0,86996.0,0.115534]
[1743074999426,0.28109892,86997.0,86996.0,0.0006]
[1743074999631,0.1149393,86992.0,86980.0,8e-05]
[1743074999822,0.1149432,86989.0,86988.0,0.00017243]
[1743075000028,0.14090918,86989.0,86988.0,0.00085243]
[1743075000329,0.21990861,86989.0,86988.0,0.00017243]
[1743075001129,0.22090861,86989.0,86988.0,0.00017243]
[1743075001618,0.2211565,86989.0,86988.0,0.00017243]
[1743075002227,0.2211565,86989.0,86988.0,0.00077243]
[1743075002426,0.2221565,86989.0,86988.0,0.00017243]
[1743075003023,0.44455407,86989.0,86988.0,0.00109243]
[1743075003229,0.44455407,86989.0,86988.0,0.00017243]
[1743075003828,0.43480289,86989.0,86988.0,0.11511693]
[1743075004027,0.43480289,86989.0,86988.0,0.00017243]
[1743075005320,0.43480289,86989.0,86988.0,0.17831693]
[1743075005724,0.41896655,86989.0,86988.0,0.17831693]
[1743075005930,0.41896655,86989.0,86988.0,0.17891693]
[1743075006132,0.41896655,86989.0,86988.0,0.21111693]
[1743075006527,0.30402335,86989.0,86988.0,0.21111693]
[1743075006735,0.38886655,86989.0,86988.0,0.57191693]
[1743075006929,0.42658711,86989.0,86988.0,0.57191693]
[1743075007329,0.45848711,86989.0,86988.0,0.57191693]
[1743075007732,0.47330124,86989.0,86988.0,0.57191693]
[1743075008138,0.35835804,86989.0,86988.0,0.57191693]
[1743075008438,0.29345804,86989.0,86988.0,0.57191693]
[1743075009042,0.29345804,86989.0,86988.0,2.07191693]
[1743075009337,0.29245804,86989.0,86988.0,2.07191693]
[1743075011629,0.40740124,86989.0,86988.0,2.07191693]
[1743075011839,0.27856391,86989.0,86988.0,2.07191693]
[1743075012027,0.01752578,86989.0,86988.0,2.07191693]
[1743075012928,0.03233093,86989.0,86988.0,2.07191693]
[1743075013329,0.4182521,87019.0,87000.0,0.1149287]
[1743075013640,0.19534183,87001.0,87000.0,0.4763287]
[1743075013839,0.18053488,87001.0,87000.0,0.5396287]
[1743075014039,0.1480183,87008.0,87007.0,0.1149194]
[1743075014235,0.1486583,87008.0,87007.0,0.4763194]
[1743075014436,0.03374,87008.0,87007.0,0.5065194]
[1743075014741,0.06594,87008.0,87007.0,0.5365194]
[1743075015544,0.03284,87008.0,87007.0,0.5365194]
[1743075015734,0.00064,87008.0,87007.0,0.5365194]
[1743075016543,0.0322,87011.0,87008.0,0.1149181]
[1743075016739,0.0322,87011.0,87008.0,0.1155181]
[1743075016945,0.0322,87011.0,87008.0,0.1757181]
[1743075017642,0.20423722,87020.0,87019.0,0.1149036]
[1743075017833,0.20487722,87020.0,87019.0,0.4763036]
[1743075019040,0.00017243,87028.0,87024.0,0.0574478]
[1743075019343,0.00017243,87028.0,87027.0,0.475693]
[1743075019730,0.00017243,87028.0,87027.0,0.476413]
[1743075020347,0.00317243,87028.0,87027.0,0.476413]
[1743075021047,0.04239806,87035.0,87028.0,0.0574453]
[1743075021237,0.04239806,87035.0,87034.0,0.1148838]
[1743075021438,0.04311806,87035.0,87034.0,0.1156038]
[1743075021749,0.04239806,87035.0,87034.0,0.1156038]
[1743075021942,0.15728056,87035.0,87034.0,0.1156038]
[1743075022134,0.03142,87035.0,87034.0,0.1156038]
[1743075022339,0.03142,87035.0,87034.0,0.1804038]
[1743075022939,0.06222,87035.0,87034.0,0.1804038]
[1743075023148,0.1771025,87035.0,87034.0,0.1804038]
[1743075023445,0.1771025,87035.0,87034.0,0.1156038]
[1743075024149,0.1821025,87035.0,87034.0,0.1156038]
[1743075024341,0.1821025,87035.0,87034.0,0.00072]
[1743075024542,0.1821025,87035.0,87034.0,0.1156038]
[1743075025643,0.18797723,87035.0,87034.0,0.00072]
[1743075025843,0.1148891,87030.0,87029.0,8e-05]
[1743075026042,0.1148943,87026.0,87014.0,0.0307]
[1743075026350,0.1723527,87022.0,87021.0,0.1149007]
[1743075026541,0.18203251,87022.0,87021.0,0.1155007]
[1743075026846,0.18203251,87022.0,87021.0,0.0006]
[1743075027049,0.18790724,87022.0,87021.0,0.0006]
[1743075027838,0.54870724,87022.0,87021.0,0.0006]
[1743075028042,0.54870724,87022.0,87017.0,8e-05]
[1743075028043,0.1149049,87018.0,87017.0,8e-05]
[1743075028243,0.12462471,87018.0,87017.0,0.0006]
[1743075028848,0.13049944,87018.0,87017.0,0.0006]
[1743075029049,0.13049944,87018.0,87017.0,0.1155062]
[1743075029237,0.19339944,87018.0,87017.0,0.1155062]
[1743075029642,0.19339944,87018.0,87017.0,0.1470062]
[1743075030143,0.19339944,87018.0,87017.0,0.0006]
[1743075030348,0.19539944,87018.0,87017.0,0.0006]
[1743075031944,0.1149115,87013.0,87012.0,8e-05]
[1743075032150,0.1149128,87012.0,87011.0,0.00017243]
[1743075032355,0.18749261,87012.0,87011.0,0.00017243]
[1743075032849,0.19336734,87012.0,87011.0,0.00017243]
[1743075033555,0.19316689,87012.0,87011.0,0.00017243]
[1743075034051,0.1149221,87005.0,87004.0,8e-05]
[1743075034252,0.1149274,87001.0,87000.0,0.00045977]
[1743075034551,0.1149485,86985.0,86984.0,0.11540965]
[1743075034742,0.12466787,86985.0,86984.0,0.11600965]
[1743075035549,0.1305426,86985.0,86984.0,0.11600965]
[1743075035754,0.1305426,86985.0,86984.0,0.00105985]
[1743075036342,0.1305426,86985.0,86984.0,0.11600965]
[1743075037245,0.1626426,86985.0,86984.0,0.11600965]
[1743075037444,0.1940426,86985.0,86984.0,0.00105985]
[1743075037648,0.1940426,86985.0,86984.0,0.00045985]
[1743075037843,0.18520324,86985.0,86984.0,0.00045985]
[1743075040052,0.1149564,86979.0,86978.0,8e-05]
[1743075040256,0.1149591,86977.0,86976.0,0.00017243]
[1743075040442,0.1149697,86969.0,86968.0,0.00045994]
[1743075040642,0.11584971,86969.0,86968.0,0.11543094]
[1743075040851,0.11584971,86969.0,86968.0,0.47683094]
[1743075041051,0.26160444,86969.0,86968.0,0.47683094]
[1743075041253,0.32490444,86969.0,86968.0,0.53953094]
[1743075041558,0.32490444,86969.0,86968.0,0.00105994]
[1743075041755,0.32490444,86969.0,86968.0,0.00045994]
[1743075041957,0.18502444,86969.0,86968.0,0.00045994]
[1743075042257,0.18702444,86969.0,86968.0,0.00105994]
[1743075042756,0.18702444,86969.0,86968.0,0.00045994]
[1743075042957,0.18114971,86969.0,86968.0,0.00045994]
[1743075043258,0.18314971,86969.0,86968.0,0.00045994]
[1743075043449,0.18314971,86969.0,86961.0,0.3608]
[1743075043450,0.1149749,86965.0,86964.0,8e-05]
[1743075043755,0.1149789,86962.0,86961.0,0.0006]
[1743075044060,0.1149802,86961.0,86958.0,8e-05]
[1743075044352,0.1797202,86961.0,86958.0,0.1150639]
[1743075044555,0.1797202,86961.0,86960.0,0.00077243]
[1743075044758,0.1149908,86953.0,86952.0,0.00046002]
[1743075044951,0.4766308,86953.0,86952.0,0.00106002]
[1743075045660,0.1149987,86947.0,86946.0,0.27500428]
[1743075045954,0.1725081,86942.0,86941.0,8e-05]
[1743075046159,0.15128,86942.0,86919.0,0.28535862]
[1743075046358,0.1150278,86925.0,86924.0,0.20609823]
[1743075046553,0.2553078,86925.0,86924.0,0.20609823]
[1743075046949,0.1164678,86925.0,86924.0,0.20609823]
[1743075047149,0.1791678,86925.0,86924.0,0.20609823]
[1743075047458,0.1486678,86925.0,86924.0,0.68692743]
[1743075047659,0.1472278,86925.0,86924.0,0.68692743]
[1743075047860,0.03356,86925.0,86924.0,0.68692743]
[1743075048053,0.0322,86925.0,86924.0,0.68692743]
[1743075048260,0.1150258,86927.0,86926.0,0.1150265]
[1743075048455,0.00144,86927.0,86926.0,0.1156265]
[1743075048673,0.00017253,86933.0,86932.0,0.1150186]
[1743075048853,0.1150212,86931.0,86930.0,0.1150203]
[1743075049053,0.1163812,86931.0,86930.0,1.6476203]
[1743075049358,0.1789212,86931.0,86930.0,1.6476203]
[1743075049756,0.1458212,86931.0,86930.0,1.7626396]
[1743075050460,0.1458212,86931.0,86930.0,1.7306396]
[1743075050761,0.1789212,86931.0,86930.0,1.6156193]
[1743075050962,0.1799212,86931.0,86930.0,1.6156193]
[1743075051666,0.1799212,86931.0,86930.0,0.0006]
[1743075051858,0.1822812,86931.0,86930.0,0.0006]
[1743075053259,0.0575158,86923.0,86920.0,0.17301019]
[1743075053468,0.1150331,86921.0,86920.0,0.17301019]
[1743075053657,0.00156001,86921.0,86920.0,0.17301019]
[1743075054056,0.2527888,86925.0,86924.0,0.1150292]
[1743075054262,0.25442881,86925.0,86924.0,0.1150292]
[1743075054664,0.1150305,86923.0,86922.0,0.0575153]
[1743075054966,0.11667051,86923.0,86922.0,0.0575153]
[1743075055156,0.1150305,86923.0,86922.0,0.0575153]
[1743075055558,0.1952745,86925.0,86924.0,0.1150292]
[1743075055763,0.13776,86925.0,86924.0,0.1150292]
[1743075056065,0.0575117,86929.0,86923.0,0.0575152]
[1743075056066,0.1150252,86927.0,86923.0,0.0575152]
[1743075056366,0.1150305,86923.0,86922.0,0.1160305]
[1743075056758,0.0575141,86925.0,86924.0,0.1150292]
[1743075057361,0.05907411,86925.0,86924.0,0.1150292]
[1743075058366,0.1150305,86923.0,86922.0,0.1160318]
[1743075058562,0.11659051,86923.0,86922.0,0.1150318]
[1743075058961,0.1150331,86921.0,86920.0,0.00046019]
[1743075059172,0.1150371,86918.0,86917.0,8e-05]
[1743075059362,0.1150371,86918.0,86904.0,0.11551558]
[1743075059363,0.1150543,86905.0,86904.0,0.11551558]
[1743075059668,0.11661431,86905.0,86904.0,0.11551558]
[1743075060273,0.20981431,86905.0,86904.0,0.00046028]
[1743075061066,0.11661431,86905.0,86904.0,0.11551588]
[1743075061269,0.11661431,86905.0,86904.0,0.12051588]
[1743075061462,0.00156001,86905.0,86904.0,0.12051588]
[1743075061663,0.11661431,86905.0,86904.0,0.00546028]
[1743075061863,0.11661431,86905.0,86904.0,0.12051588]
[1743075062072,0.11661431,86905.0,86904.0,0.00746028]
[1743075062262,0.11661431,86905.0,86904.0,0.12251588]
[1743075062966,0.11661431,86905.0,86904.0,0.00746028]
[1743075063166,0.11661431,86905.0,86904.0,0.00246028]
[1743075063473,0.17901431,86905.0,86904.0,0.00546028]
[1743075065075,0.28275431,86905.0,86904.0,0.00546028]
[1743075065465,0.00156001,86905.0,86904.0,0.12051588]
[1743075065774,0.11521683,86913.0,86912.0,0.1150451]
[1743075065968,0.11521683,86913.0,86912.0,0.4758451]
[1743075065969,0.00173254,86913.0,86912.0,0.4758451]
[1743075066174,0.11521623,86913.0,86912.0,0.4758451]
[1743075066473,0.00173254,86913.0,86912.0,0.4758451]
[1743075066676,0.11521623,86913.0,86912.0,0.4758451]
[1743075066977,0.00173254,86913.0,86912.0,0.4758451]
[1743075067160,0.00173254,86913.0,86912.0,0.4768451]